Workbook

Sheet Daten
B2: Handreichung Verwendungsnachweis, Version 2.13
B4: Sehr geehrter Zuwendungsempfänger, für den "Zahlenmäßigen Nachweis" Ihres Verwendungsnachweises empfiehlt sich der Einsatz dieser Handreichung. Füllen Sie dazu dieses Arbeitsblatt "Daten" und das Arbeitsblatt "Zahlenmäßiger Nachweis" vollständig aus. Beachten Sie bitte alle Hinweise in diesem Arbeitsblatt "Daten".
A6: 1 | B6: Einen beispielhaften Eintrag finden Sie im Arbeitsblatt "Beispieleintrag Nachweis". Dort ist die Handhabung im Prinzip zu erkennen. Die Eintragungen zu Ihrem Fördervorhaben können Sie in dem Arbeitsblatt "Zahlenmäßiger Nachweis" vornehmen. Durch die Verwendung des Buttons "Filter ein/aus" (in den beiden genannten Arbeitsblättern jeweils oben links in gelber Schrift) können Sie für eigene Überprüfungen verschiedenste Filterungen mit den zugehörigen Teilsummen bilden. Beispiele hierzu wären die Anzeige aller Einträge zu einer bestimmten Ausgabenposition des Ausgabenplans gemäß Förderbescheid (z.B. alle eingetragenen Ausgaben zur Ausgabenplan-Position Nr. 1 etc), die Anzeige aller Ausgaben eines bestimmten Rechnungsdatums oder -zeitraums (Excel-Filter-Option "benutzerdefiniert") oder alle Eintragungen bezogen auf einen bestimmten Lieferanten. Vor dem Ausdruck Ihres fertiggestellten Nachweises empfiehlt es sich, die nicht genutzten, frei geblieben Zeilen im Arbeitsblatt "Zahlenm. Nachweis" zu löschen. Für den Ausdruck selbst genügt i.d.R. ein Ausdruck auf ein DIN A4-Blatt, welches danach auf einem Kopierer auf DIN A3 vergrößert wird. Bei Fragen zur Handhabung wenden Sie sich gerne an Ihren Ansprechpartner bei der hessenENERGIE in Wiesbaden.
A8: 2 | B8: Zuwendungsempfänger: | C8: Name, Adresse
B9: Bezeichnung des Fördervorhabens: | C9: Fördervorhaben xy, Bezeichnung
B10: Adresse des Fördervorhabens: | C10: Plz + Ort, Straße + Hausnummer
B11: Aktenzeichen des Förderantrags: | C11: LTH / ... / ...
B12: Datum des Förderantrags: | C12: 2007-01-01
B13: ggf. Datum des Änderungsantrags: | C13: 2007-01-01
B14: ggf. Datum der Genehmigung zum vorzeitigen Vorhabenbeginn: | C14: 2007-01-01
B15: Datum des Zuwendungsbescheids: | C15: 2007-01-01
B16: ggf. Datum des Änderungsbescheids: | C16: 2007-01-01
B17: Datum der Inbetriebnahme der Anlage: | C17: 2007-01-01
B18: Datum Ihres Verwendungsnachweises: | C18: 2007-01-01
B19: Summe der bisher abgerufenen Fördermittel: | C19: 10000
B20: Vorliegende Berechtigung zum Vorsteuerabzug (§ 15 Umsatzsteuergesetz): | C20: nein
A22: 3 | B22: Fügen Sie bitte Ihrem Verwendungsnachweis gemäß der Nebenbestimmungen Ihres Förderbescheids einen aktuellen Sachstandsbericht bei.
A24: 4 | B24: Ergänzen Sie Ihren Sachstandsbericht bzw. Verwendungsnachweis um eine eindeutige schriftliche Erklärung, dass bei dem Fördervorhaben die in dem zugehörigen Förderbescheid genannten Nebenbestimmungen bzgl. der Vergabe eingehalten wurden (Näheres siehe im Förderbescheid).
A26: 5 | B26: Verwenden Sie für Ihren Verwendungsnachweis die jeweils aktuellste Version dieser Excel-Datei, die im Internet bei der hessenENERGIE als Download zur Verfügung steht unter:
B27: http://www.hessenenergie.de/Foerderung/Foer-Hessen/Verwendungsnachweis.zip
B29: 2007-04-17 | C29: www.hessenENERGIE.de

Sheet Zahlenmäßiger Nachweis
A1: ="V "&RIGHT(Daten!B2,LEN(Daten!B2)-FIND(".",Daten!B2)+2) -> V 2.13
B2: Zahlenmäßiger Nachweis | I2: =Daten!C9&" - "&Daten!C10 -> Fördervorhaben xy, Bezeichnung - Plz + Ort, Straße + Hausnummer | S2: =Daten!C18 -> 2007-01-01
B4: Spalte A | C4: B | D4: C | E4: D | F4: E | G4: F | H4: G | I4: H | J4: I | K4: J | L4: K | M4: L | N4: M | O4: N | P4: O | Q4: P | R4: Q | S4: R | T4: S
B5: laufende Nr. | C5: Pos.-Nr. des Aus- gabenplans | D5: interne Beleg-Nr. | E5: Datum der Auftrags- erteilung | F5: Datum der Ausführung, Leistung | G5: Datum der Rechnung | H5: Tag der Zahlung | I5: Rechnungs- nummer | J5: Zahlungsempfänger (Name, Ort, ...) | K5: Leistung, Grund der Zahlung | L5: Postions-Nr. innerhalb der Rechnungen | M5: Einnahmen | N5: gesamter Rechnungs- betrag brutto | O5: anrechenbarer Rechnungs- betrag brutto | P5: dito | Q5: tatsächliche Ausgaben brutto | R5: MwSt.- Satz | S5: tatsächliche Ausgaben netto | T5: Notizen
B6: A n z a h l d e r E i n t r ä g e | M6: S u m m e | O6: S u m m e | Q6: S u m m e | S6: S u m m e
B7: =SUBTOTAL(3,B9:B190) -> 180 | C7: =SUBTOTAL(3,C9:C190) -> 1 | D7: =SUBTOTAL(3,D9:D190) -> 0 | E7: =SUBTOTAL(3,E9:E190)&" Einträge" -> 0 Einträge | F7: 0 Einträge | G7: 0 Einträge | H7: =SUBTOTAL(3,H9:H190)&" Einträge" -> 0 Einträge | I7: 0 Einträge | J7: 0 Einträge | K7: 0 Einträge | M7: =SUBTOTAL(9,M9:M190) -> 0 | O7: =SUBTOTAL(9,O9:O190) -> 0 | Q7: =SUBTOTAL(9,Q9:Q190) -> 0 | S7: =SUBTOTAL(9,S9:S190) -> 0
M8: EUR | N8: EUR | O8: EUR | P8: % | Q8: EUR | R8: % | S8: EUR
B10: =OFFSET(B10,-1,0)+1 -> 1 | C10: 1 | P10: =IF(OR(ISBLANK(N10),TYPE(N10)=2)," - ",O10/N10*100) -> - | R10: 19 | S10: =IF(TYPE(Q10)=1,ROUND(Q10/(1+R10/100),2),"-") -> 0
B11: 2 | P11: =IF(OR(ISBLANK(N11),TYPE(N11)=2)," - ",O11/N11*100) -> - | R11: 19 | S11: =IF(TYPE(Q11)=1,ROUND(Q11/(1+R11/100),2),"-") -> 0
B12: 3 | P12: - | R12: 19 | S12: 0
B13: 4 | P13: - | R13: 19 | S13: 0
B14: 5 | P14: - | R14: 19 | S14: 0
B15: 6 | P15: - | R15: 19 | S15: 0
B16: 7 | P16: - | R16: 19 | S16: 0
B17: 8 | P17: - | R17: 19 | S17: 0
B18: 9 | P18: - | R18: 19 | S18: 0
B19: 10 | P19: - | R19: 19 | S19: 0
B20: 11 | P20: - | R20: 19 | S20: 0
B21: 12 | P21: - | R21: 19 | S21: 0
B22: 13 | P22: - | R22: 19 | S22: 0
B23: 14 | P23: - | R23: 19 | S23: 0
B24: 15 | P24: - | R24: 19 | S24: 0
B25: 16 | P25: - | R25: 19 | S25: 0
B26: 17 | P26: - | R26: 19 | S26: 0
B27: 18 | P27: - | R27: 19 | S27: 0
B28: 19 | P28: - | R28: 19 | S28: 0
B29: 20 | P29: - | R29: 19 | S29: 0
B30: 21 | P30: - | R30: 19 | S30: 0
B31: 22 | P31: - | R31: 19 | S31: 0
B32: 23 | P32: - | R32: 19 | S32: 0
B33: 24 | P33: - | R33: 19 | S33: 0
B34: 25 | P34: - | R34: 19 | S34: 0
B35: 26 | P35: - | R35: 19 | S35: 0
B36: 27 | P36: - | R36: 19 | S36: 0
B37: 28 | P37: - | R37: 19 | S37: 0
B38: 29 | P38: - | R38: 19 | S38: 0
B39: 30 | P39: - | R39: 19 | S39: 0
B40: 31 | P40: - | R40: 19 | S40: 0
B41: 32 | P41: - | R41: 19 | S41: 0
B42: 33 | P42: - | R42: 19 | S42: 0
B43: 34 | P43: - | R43: 19 | S43: 0
B44: 35 | P44: - | R44: 19 | S44: 0
B45: 36 | P45: - | R45: 19 | S45: 0
B46: 37 | P46: - | R46: 19 | S46: 0
B47: 38 | P47: - | R47: 19 | S47: 0
B48: 39 | P48: - | R48: 19 | S48: 0
B49: 40 | P49: - | R49: 19 | S49: 0
B50: 41 | P50: - | R50: 19 | S50: 0
B51: 42 | P51: - | R51: 19 | S51: 0
B52: 43 | P52: - | R52: 19 | S52: 0
B53: 44 | P53: - | R53: 19 | S53: 0
B54: 45 | P54: - | R54: 19 | S54: 0
B55: 46 | P55: - | R55: 19 | S55: 0
B56: 47 | P56: - | R56: 19 | S56: 0
B57: 48 | P57: - | R57: 19 | S57: 0
B58: 49 | P58: - | R58: 19 | S58: 0
B59: 50 | P59: - | R59: 19 | S59: 0
B60: 51 | P60: - | R60: 19 | S60: 0
B61: 52 | P61: - | R61: 19 | S61: 0
B62: 53 | P62: - | R62: 19 | S62: 0
B63: 54 | P63: - | R63: 19 | S63: 0
B64: 55 | P64: - | R64: 19 | S64: 0
B65: 56 | P65: - | R65: 19 | S65: 0
B66: 57 | P66: - | R66: 19 | S66: 0
B67: 58 | P67: - | R67: 19 | S67: 0
B68: 59 | P68: - | R68: 19 | S68: 0
B69: 60 | P69: - | R69: 19 | S69: 0
B70: 61 | P70: - | R70: 19 | S70: 0
B71: 62 | P71: - | R71: 19 | S71: 0
B72: 63 | P72: - | R72: 19 | S72: 0
B73: 64 | P73: - | R73: 19 | S73: 0
B74: 65 | P74: - | R74: 19 | S74: 0
B75: 66 | P75: =IF(OR(ISBLANK(N75),TYPE(N75)=2)," - ",O75/N75*100) -> - | R75: 19 | S75: =IF(TYPE(Q75)=1,ROUND(Q75/(1+R75/100),2),"-") -> 0
B76: 67 | P76: - | R76: 19 | S76: 0
B77: 68 | P77: - | R77: 19 | S77: 0
B78: 69 | P78: - | R78: 19 | S78: 0
B79: 70 | P79: - | R79: 19 | S79: 0
B80: 71 | P80: - | R80: 19 | S80: 0
B81: 72 | P81: - | R81: 19 | S81: 0
B82: 73 | P82: - | R82: 19 | S82: 0
B83: 74 | P83: - | R83: 19 | S83: 0
B84: 75 | P84: - | R84: 19 | S84: 0
B85: 76 | P85: - | R85: 19 | S85: 0
B86: 77 | P86: - | R86: 19 | S86: 0
B87: 78 | P87: - | R87: 19 | S87: 0
B88: 79 | P88: - | R88: 19 | S88: 0
B89: 80 | P89: - | R89: 19 | S89: 0
B90: 81 | P90: - | R90: 19 | S90: 0
B91: 82 | P91: - | R91: 19 | S91: 0
B92: 83 | P92: - | R92: 19 | S92: 0
B93: 84 | P93: - | R93: 19 | S93: 0
B94: 85 | P94: - | R94: 19 | S94: 0
B95: 86 | P95: - | R95: 19 | S95: 0
B96: 87 | P96: - | R96: 19 | S96: 0
B97: 88 | P97: - | R97: 19 | S97: 0
B98: 89 | P98: - | R98: 19 | S98: 0
B99: 90 | P99: - | R99: 19 | S99: 0
B100: 91 | P100: - | R100: 19 | S100: 0
B101: 92 | P101: - | R101: 19 | S101: 0
B102: 93 | P102: - | R102: 19 | S102: 0
B103: 94 | P103: - | R103: 19 | S103: 0
B104: 95 | P104: - | R104: 19 | S104: 0
B105: 96 | P105: - | R105: 19 | S105: 0
B106: 97 | P106: - | R106: 19 | S106: 0
B107: 98 | P107: - | R107: 19 | S107: 0
B108: 99 | P108: - | R108: 19 | S108: 0
B109: 100 | P109: - | R109: 19 | S109: 0
B110: 101 | P110: - | R110: 19 | S110: 0
B111: 102 | P111: - | R111: 19 | S111: 0
B112: 103 | P112: - | R112: 19 | S112: 0
B113: 104 | P113: - | R113: 19 | S113: 0
B114: 105 | P114: - | R114: 19 | S114: 0
B115: 106 | P115: - | R115: 19 | S115: 0
B116: 107 | P116: - | R116: 19 | S116: 0
B117: 108 | P117: - | R117: 19 | S117: 0
B118: 109 | P118: - | R118: 19 | S118: 0
B119: 110 | P119: - | R119: 19 | S119: 0
B120: 111 | P120: - | R120: 19 | S120: 0
B121: 112 | P121: - | R121: 19 | S121: 0
B122: 113 | P122: - | R122: 19 | S122: 0
B123: 114 | P123: - | R123: 19 | S123: 0
B124: 115 | P124: - | R124: 19 | S124: 0
B125: 116 | P125: - | R125: 19 | S125: 0
B126: 117 | P126: - | R126: 19 | S126: 0
B127: 118 | P127: - | R127: 19 | S127: 0
B128: 119 | P128: - | R128: 19 | S128: 0
B129: 120 | P129: - | R129: 19 | S129: 0
B130: 121 | P130: - | R130: 19 | S130: 0
B131: 122 | P131: - | R131: 19 | S131: 0
B132: 123 | P132: - | R132: 19 | S132: 0
B133: 124 | P133: - | R133: 19 | S133: 0
B134: 125 | P134: - | R134: 19 | S134: 0
B135: 126 | P135: - | R135: 19 | S135: 0
B136: 127 | P136: - | R136: 19 | S136: 0
B137: 128 | P137: - | R137: 19 | S137: 0
B138: 129 | P138: - | R138: 19 | S138: 0
B139: 130 | P139: =IF(OR(ISBLANK(N139),TYPE(N139)=2)," - ",O139/N139*100) -> - | R139: 19 | S139: =IF(TYPE(Q139)=1,ROUND(Q139/(1+R139/100),2),"-") -> 0
B140: 131 | P140: - | R140: 19 | S140: 0
B141: 132 | P141: - | R141: 19 | S141: 0
B142: 133 | P142: - | R142: 19 | S142: 0
B143: 134 | P143: - | R143: 19 | S143: 0
B144: 135 | P144: - | R144: 19 | S144: 0
B145: 136 | P145: - | R145: 19 | S145: 0
B146: 137 | P146: - | R146: 19 | S146: 0
B147: 138 | P147: - | R147: 19 | S147: 0
B148: 139 | P148: - | R148: 19 | S148: 0
B149: 140 | P149: - | R149: 19 | S149: 0
B150: 141 | P150: - | R150: 19 | S150: 0
B151: 142 | P151: - | R151: 19 | S151: 0
B152: 143 | P152: - | R152: 19 | S152: 0
B153: 144 | P153: - | R153: 19 | S153: 0
B154: 145 | P154: - | R154: 19 | S154: 0
B155: 146 | P155: - | R155: 19 | S155: 0
B156: 147 | P156: - | R156: 19 | S156: 0
B157: 148 | P157: - | R157: 19 | S157: 0
B158: 149 | P158: - | R158: 19 | S158: 0
B159: 150 | P159: - | R159: 19 | S159: 0
B160: 151 | P160: - | R160: 19 | S160: 0
B161: 152 | P161: - | R161: 19 | S161: 0
B162: 153 | P162: - | R162: 19 | S162: 0
B163: 154 | P163: - | R163: 19 | S163: 0
B164: 155 | P164: - | R164: 19 | S164: 0
B165: 156 | P165: - | R165: 19 | S165: 0
B166: 157 | P166: - | R166: 19 | S166: 0
B167: 158 | P167: - | R167: 19 | S167: 0
B168: 159 | P168: - | R168: 19 | S168: 0
B169: 160 | P169: - | R169: 19 | S169: 0
B170: 161 | P170: - | R170: 19 | S170: 0
B171: 162 | P171: - | R171: 19 | S171: 0
B172: 163 | P172: - | R172: 19 | S172: 0
B173: 164 | P173: - | R173: 19 | S173: 0
B174: 165 | P174: - | R174: 19 | S174: 0
B175: 166 | P175: - | R175: 19 | S175: 0
B176: 167 | P176: - | R176: 19 | S176: 0
B177: 168 | P177: - | R177: 19 | S177: 0
B178: 169 | P178: - | R178: 19 | S178: 0
B179: 170 | P179: - | R179: 19 | S179: 0
B180: 171 | P180: - | R180: 19 | S180: 0
B181: 172 | P181: - | R181: 19 | S181: 0
B182: 173 | P182: - | R182: 19 | S182: 0
B183: 174 | P183: - | R183: 19 | S183: 0
B184: 175 | P184: - | R184: 19 | S184: 0
B185: 176 | P185: - | R185: 19 | S185: 0
B186: 177 | P186: - | R186: 19 | S186: 0
B187: 178 | P187: - | R187: 19 | S187: 0
B188: 179 | P188: - | R188: 19 | S188: 0
B189: 180 | P189: - | R189: 19 | S189: 0

Sheet Beispieleintrag Nachweis
A1: ="V "&RIGHT(Daten!B2,LEN(Daten!B2)-FIND(".",Daten!B2)+2) -> V 2.13
B2: Verwendungsnachweis | I2: Fördervorhaben Beispiel, Beispiel-Bezeichnung, Beispiel-Ort | S2: 2007-04-17
B4: Spalte A | C4: B | D4: C | E4: D | F4: E | G4: F | H4: G | I4: H | J4: I | K4: J | L4: K | M4: L | N4: M | O4: N | P4: O | Q4: P | R4: Q | S4: R | T4: S
B5: laufende Nr. | C5: Pos.-Nr. des Aus- gabenplans | D5: interne Beleg-Nr. | E5: Datum der Auftrags- erteilung | F5: Datum der Ausführung, Leistung | G5: Datum der Rechnung | H5: Tag der Zahlung | I5: Rechnungs- nummer | J5: Zahlungsempfänger (Name, Ort, ...) | K5: Leistung, Grund der Zahlung | L5: Postions-Nr. innerhalb der Rechnungen | M5: Einnahmen | N5: gesamter Rechnungs- betrag brutto | O5: anrechenbarer Rechnungs- betrag brutto | P5: dito | Q5: tatsächliche Ausgaben brutto | R5: MwSt.- Satz | S5: tatsächliche Ausgaben netto | T5: Notizen
B6: A n z a h l d e r E i n t r ä g e | M6: S u m m e | O6: S u m m e | Q6: S u m m e | S6: S u m m e
B7: =SUBTOTAL(3,B9:B35) -> 19 | C7: =SUBTOTAL(3,C9:C35) -> 21 | D7: =SUBTOTAL(3,D9:D35) -> 15 | E7: =SUBTOTAL(3,E9:E35)&" Einträge" -> 15 Einträge | F7: 15 Einträge | G7: 15 Einträge | H7: 15 Einträge | I7: 15 Einträge | J7: 15 Einträge | K7: 15 Einträge | M7: =SUBTOTAL(9,M9:M35) -> 15000 | O7: =SUBTOTAL(9,O9:O35) -> 79500 | Q7: =SUBTOTAL(9,Q9:Q35) -> 78250 | S7: =SUBTOTAL(9,S9:S35) -> 67525.87
M8: EUR | N8: EUR | O8: EUR | P8: % | Q8: EUR | R8: % | S8: EUR
C10: Nachstehend finden Sie verschiedene, beispielhafte Einträge.
C11: Verwenden Sie bitte für Ihr Vorhaben das leere Arbeitsblatt "Zahlenmäßiger Nachweis".
B13: Bsp. 1: | C13: Leistungen von vier verschiedenen Firmen (A - D), die jeweils eindeutig einer Position des Ausgabenplans zu geordnet werden können:
B14: 1 | C14: 1 | D14: 1-1 | E14: 2005-03-01 | F14: 2005-03-15 | G14: 2005-04-01 | H14: 2005-04-15 | I14: 08-15 | J14: Firma A, Ort A | K14: Holzfeuerungsanlage; Gesamtrechnung | L14: Gesamter Rechnungsbetrag (alle Positionen, inkl. Versand, ohne Abzug von Skonto) | N14: 10000 | O14: =N14 -> 10000 | P14: =IF(OR(ISBLANK(N14),TYPE(N14)=2)," - ",O14/N14*100) -> 100 | Q14: =O14 -> 10000 | R14: 16 | S14: =IF(TYPE(Q14)=1,ROUND(Q14/(1+R14/100),2),"-") -> 8620.69
B15: =OFFSET(B15,-1,0)+1 -> 2 | C15: 2 | D15: 2-1 | E15: 2005-05-01 | F15: 2005-05-15 | G15: 2005-06-01 | H15: 2005-06-15 | I15: 4711 | J15: Firma B, Ort B | K15: Elektroarbeiten; Gesamtrechnung | L15: Gesamter Rechnungsbetrag (alle Positionen, inkl. Versand, inkl. Abzug von 3 % Skonto) | N15: 10000 | O15: =N15 -> 10000 | P15: =IF(OR(ISBLANK(N15),TYPE(N15)=2)," - ",O15/N15*100) -> 100 | Q15: =O15*0.97 -> 9700 | R15: 16 | S15: =IF(TYPE(Q15)=1,ROUND(Q15/(1+R15/100),2),"-") -> 8362.07
B16: 3 | C16: 3 | D16: 3-1 | E16: 2005-02-01 | F16: 2005-02-15 | G16: 2005-03-01 | H16: 2005-03-15 | I16: 007.08 | J16: Firma C, Ort C | K16: Planung und Bauleitung; Gesamtrechnung | L16: Rechnungsbetrag abzgl. Rechn.-Pos. 9 und abzgl. 5 % Einbehalt | N16: 11000 | O16: =N16-2000 -> 9000 | P16: =IF(OR(ISBLANK(N16),TYPE(N16)=2)," - ",O16/N16*100) -> 81.81818182 | Q16: =O16*0.95 -> 8550 | R16: 16 | S16: =IF(TYPE(Q16)=1,ROUND(Q16/(1+R16/100),2),"-") -> 7370.69 | T16: Rechn.-Pos. 9 (hier 2.000,- brutto) beinhaltet eine Maßnahme, die nicht förderfähig ist.
B17: 4 | C17: 4 | D17: 4-1 | E17: 2005-01-01 | F17: 2005-01-15 | G17: 2005-02-01 | H17: 2005-02-15 | I17: 2005.77 | J17: Behörde D, Ort D | K17: Baugenehmigung | L17: Gesamter Rechnungsbetrag; Nettobetrag | N17: 500 | O17: =N17 -> 500 | P17: =IF(OR(ISBLANK(N17),TYPE(N17)=2)," - ",O17/N17*100) -> 100 | Q17: =O17 -> 500 | R17: 0 | S17: =IF(TYPE(Q17)=1,ROUND(Q17/(1+R17/100),2),"-") -> 500
B19: Bsp. 2: | C19: Für die gesamte Leistung einer Firma A, die einer einzelnen Ausgabenposition (1) zugeordnet werden kann, wurden zwei Abschlagrechnungen und eine Abschlussrechnung vorgelegt und gezahlt:
B20: 1 | C20: 1 | D20: A7-01 | E20: 2005-03-01 | F20: 2005-03-15 | G20: 2005-04-01 | H20: 2005-04-15 | I20: 08-15 | J20: Firma A, Ort A | K20: Holzfeuerungsanlage; 1. Abschlagsrechnung | L20: Gesamter Rechnungsbetrag (alle Positionen, inkl. Versand, ohne Abzug von Skonto) | N20: 10000 | O20: =N20 -> 10000 | P20: =IF(OR(ISBLANK(N20),TYPE(N20)=2)," - ",O20/N20*100) -> 100 | Q20: =O20 -> 10000 | R20: 16 | S20: =IF(TYPE(Q20)=1,ROUND(Q20/(1+R20/100),2),"-") -> 8620.69
B21: 2 | C21: 1 | D21: A7-02 | E21: 2005-03-01 | F21: 2005-04-15 | G21: 2005-05-01 | H21: 2005-05-15 | I21: 08-16 | J21: Firma A, Ort A | K21: Holzfeuerungsanlage; 2. Abschlagsrechnung | L21: Gesamter Rechnungsbetrag (alle Positionen, inkl. Versand, ohne Abzug von Skonto) | N21: 10000 | O21: =N21 -> 10000 | P21: =IF(OR(ISBLANK(N21),TYPE(N21)=2)," - ",O21/N21*100) -> 100 | Q21: =O21 -> 10000 | R21: 16 | S21: =IF(TYPE(Q21)=1,ROUND(Q21/(1+R21/100),2),"-") -> 8620.69
B22: 3 | C22: 1 | D22: A7-03 | E22: 2005-03-01 | F22: 2005-05-15 | G22: 2005-06-01 | H22: 2005-06-15 | I22: 08-17 | J22: Firma A, Ort A | K22: Holzfeuerungsanlage; Gesamtrechnung | L22: Gesamter Rechnungsbetrag (alle Positionen, inkl. Versand, ohne Abzug von Skonto) | N22: 5000 | O22: =N22 -> 5000 | P22: =IF(OR(ISBLANK(N22),TYPE(N22)=2)," - ",O22/N22*100) -> 100 | Q22: =O22 -> 5000 | R22: 16 | S22: =IF(TYPE(Q22)=1,ROUND(Q22/(1+R22/100),2),"-") -> 4310.34
B24: Bsp. 3: | C24: Ähnlich dem Bsp. 2; hier werden Teilbeträge der Rechnung(en) (inkl. Skonto) der Firma A jedoch drei verschiedenen Positionen des Ausgabenplans (1 - 3) zugeordnet. Es empfiehlt sich hier, die Schlussrechnung als Basis zu verwenden:
B25: 1 | C25: - | D25: 001 | E25: 2005-03-01 | F25: 2005-03-15 | G25: 2005-04-01 | H25: 2005-04-15 | I25: 08-15 | J25: Firma A, Ort A | K25: Holzfeuerungsanlage; 1. Abschlagsrechnung | L25: 1. Abschlagszahlung, Zuordnung (zu den Pos. den Ausgabenplans) siehe Beleg-Nr. 003 | N25: in Beleg-Nr. 3 enthalten | O25: in Beleg-Nr. 3 enthalten | P25: =IF(OR(ISBLANK(N25),TYPE(N25)=2)," - ",O25/N25*100) -> - | Q25: in Beleg-Nr. 3 enthalten | R25: 16 | S25: =IF(TYPE(Q25)=1,ROUND(Q25/(1+R25/100),2),"-") -> -
B26: 2 | C26: - | D26: 002 | E26: 2005-03-01 | F26: 2005-04-15 | G26: 2005-05-01 | H26: 2005-05-15 | I26: 08-33 | J26: Firma A, Ort A | K26: Holzfeuerungsanlage; 2. Abschlagsrechnung | L26: 2. Abschlagszahlung, Zuordnung (zu den Pos. den Ausgabenplans) siehe Beleg-Nr. 003 | N26: in Beleg-Nr. 3 enthalten | O26: in Beleg-Nr. 3 enthalten | P26: =IF(OR(ISBLANK(N26),TYPE(N26)=2)," - ",O26/N26*100) -> - | Q26: in Beleg-Nr. 3 enthalten | R26: 16 | S26: =IF(TYPE(Q26)=1,ROUND(Q26/(1+R26/100),2),"-") -> -
B27: 3 | C27: 1 | D27: 003 | E27: 2005-03-01 | F27: 2005-05-15 | G27: 2005-06-01 | H27: 2005-06-15 | I27: 08-42 | J27: Firma A, Ort A | K27: Holzfeuerungsanlage; Gesamtrechnung | L27: Rechnungsbetrag Pos. 1. bis 4., inkl. Versand, anteiliger Abzug von 2 % Skonto auf den Gesamtbetrag von 25.000 EUR) | N27: 25000 | O27: 10000 | P27: =IF(OR(ISBLANK(N27),TYPE(N27)=2)," - ",O27/N27*100) -> 40 | Q27: =O27*0.98 -> 9800 | R27: 16 | S27: =IF(TYPE(Q27)=1,ROUND(Q27/(1+R27/100),2),"-") -> 8448.28
B28: 4 | C28: 2 | D28: 003 | E28: 2005-03-01 | F28: 2005-05-15 | G28: 2005-06-01 | H28: 2005-06-15 | I28: 08-42 | J28: Firma A, Ort A | K28: Holzfeuerungsanlage; Gesamtrechnung | L28: Rechnungsbetrag Pos. 5. bis 7.3, inkl. Versand, anteiliger Abzug von 2 % Skonto auf den Gesamtbetrag von 25.000 EUR) | N28: 25000 | O28: 10000 | P28: =IF(OR(ISBLANK(N28),TYPE(N28)=2)," - ",O28/N28*100) -> 40 | Q28: =O28*0.98 -> 9800 | R28: 16 | S28: =IF(TYPE(Q28)=1,ROUND(Q28/(1+R28/100),2),"-") -> 8448.28
B29: 5 | C29: 3 | D29: 003 | E29: 2005-03-01 | F29: 2005-05-15 | G29: 2005-06-01 | H29: 2005-06-15 | I29: 08-42 | J29: Firma A, Ort A | K29: Holzfeuerungsanlage; Gesamtrechnung | L29: Rechnungsbetrag Pos. 8. bis 10., inkl. Versand, anteiliger Abzug von 2 % Skonto auf den Gesamtbetrag von 25.000 EUR) | N29: 25000 | O29: 5000 | P29: =IF(OR(ISBLANK(N29),TYPE(N29)=2)," - ",O29/N29*100) -> 20 | Q29: =O29*0.98 -> 4900 | R29: 16 | S29: =IF(TYPE(Q29)=1,ROUND(Q29/(1+R29/100),2),"-") -> 4224.14
B31: Bsp. 4: | C31: Einnahmen
B32: 1 | C32: Einnahme | D32: B/27 | E32: - | F32: - | G32: - | H32: 2005-02-01 | I32: 0815007 | J32: Bewilligungsbehörde E, Ort E | K32: Abruf von Fördermitteln | M32: 5000 | P32: =IF(OR(ISBLANK(N32),TYPE(N32)=2)," - ",O32/N32*100) -> - | R32: 16 | S32: =IF(TYPE(Q32)=1,ROUND(Q32/(1+R32/100),2),"-") -> 0
B33: =OFFSET(B33,-1,0)+1 -> 2 | C33: Einnahme | D33: B/32 | E33: - | F33: - | G33: - | H33: 2005-03-01 | I33: 0815012 | J33: Bewilligungsbehörde E, Ort E | K33: Abruf von Fördermitteln | M33: 5000 | P33: =IF(OR(ISBLANK(N33),TYPE(N33)=2)," - ",O33/N33*100) -> - | R33: 16 | S33: =IF(TYPE(Q33)=1,ROUND(Q33/(1+R33/100),2),"-") -> 0
B34: =OFFSET(B34,-1,0)+1 -> 3 | C34: Einnahme | D34: B/44 | E34: - | F34: - | G34: - | H34: 2005-04-01 | I34: 0815042 | J34: Bewilligungsbehörde E, Ort E | K34: Abruf von Fördermitteln | M34: 5000 | P34: =IF(OR(ISBLANK(N34),TYPE(N34)=2)," - ",O34/N34*100) -> - | R34: 16 | S34: =IF(TYPE(Q34)=1,ROUND(Q34/(1+R34/100),2),"-") -> 0
